[Event "*** Titled Tuesday Blitz"]
[Site "Chess.com"]
[Date "2020.05.26"]
[Round "5"]
[White "mjray79"]
[Black "CraiggoryC"]
[Result "1-0"]
[WhiteElo "2288"]
[BlackElo "2112"]
[TimeControl "180+1"]
[EndTime "10:54:51 PDT"]
[Termination "mjray79 won on time"]

1. d4 {[%clk 0:03:00.9]} 1... Nf6 {[%clk 0:02:44.2]} 2. c4 {[%clk 0:03:00.9]}
2... d6 {[%clk 0:02:44.1]} 3. Nc3 {[%clk 0:02:59.9]} 3... Nbd7 {[%clk
0:02:43.5]} 4. e4 {[%clk 0:02:59.1]} 4... e5 {[%clk 0:02:43.7]} 5. d5 {[%clk
0:02:59]} 5... a5 {[%clk 0:02:41.6]} 6. Nge2 {[%clk 0:02:59]} 6... g6 {[%clk
0:02:35.9]} 7. Ng3 {[%clk 0:02:58]} 7... Bg7 {[%clk 0:02:33.8]} 8. Be2 {[%clk
0:02:58.2]} 8... Nc5 {[%clk 0:02:31.5]} 9. h4 {[%clk 0:02:55.9]} 9... h5 {[%clk
0:02:30.8]} 10. Bg5 {[%clk 0:02:54.8]} 10... Qd7 {[%clk 0:02:03]} 11. Qd2 {[%clk
0:02:49.7]} 11... a4 {[%clk 0:01:47.4]} 12. O-O {[%clk 0:02:37.6]} 12... Nh7
{[%clk 0:01:43.2]} 13. Bh6 {[%clk 0:02:36.4]} 13... Bf6 {[%clk 0:01:42.8]} 14.
Bg5 {[%clk 0:02:33.6]} 14... Bxg5 {[%clk 0:01:20.4]} 15. hxg5 {[%clk 0:02:34.5]}
15... Qe7 {[%clk 0:01:15.5]} 16. Nb5 {[%clk 0:02:23.8]} 16... h4 {[%clk
0:01:05.7]} 17. Nh1 {[%clk 0:02:23.5]} 17... h3 {[%clk 0:00:58]} 18. g4 {[%clk
0:02:03.4]} 18... Nxe4 {[%clk 0:00:50.1]} 19. Qe3 {[%clk 0:02:01.4]} 19... Nhxg5
{[%clk 0:00:47.3]} 20. Ng3 {[%clk 0:01:55.4]} 20... Rh4 {[%clk 0:00:29.1]} 21.
Nxe4 {[%clk 0:01:47.6]} 21... h2+ {[%clk 0:00:20.5]} 22. Kh1 {[%clk 0:01:46.4]}
22... Nxe4 {[%clk 0:00:17.1]} 23. Qxe4 {[%clk 0:01:46.2]} 23... Bxg4 {[%clk
0:00:12.8]} 24. Bxg4 {[%clk 0:01:43.3]} 24... f5 {[%clk 0:00:12.8]} 25. Qd3
{[%clk 0:01:40.6]} 25... e4 {[%clk 0:00:11]} 26. Qe2 {[%clk 0:01:36.2]} 26...
Rxg4 {[%clk 0:00:09.7]} 27. f3 {[%clk 0:01:36.3]} 27... Rh4 {[%clk 0:00:04.3]}
28. fxe4 {[%clk 0:01:35.9]} 28... Rxe4 {[%clk 0:00:04.3]} 29. Qg2 {[%clk
0:01:35.7]} 29... O-O-O {[%clk 0:00:03.1]} 30. Qxg6 {[%clk 0:01:35.5]} 1-0

[Event "*** Titled Tuesday Blitz"]
[Site "Chess.com"]
[Date "2020.05.26"]
[Round "5"]
[White "lachesisQ"]
[Black "RaunakSadhwani2005"]
[Result "1-0"]
[WhiteElo "3156"]
[BlackElo "2831"]
[TimeControl "180+1"]
[EndTime "10:54:52 PDT"]
[Termination "lachesisQ won by resignation"]

1. e4 {[%clk 0:03:00.9]} 1... c6 {[%clk 0:02:59.8]} 2. Nf3 {[%clk 0:03:00.2]}
2... d5 {[%clk 0:02:59.7]} 3. d3 {[%clk 0:03:01.1]} 3... dxe4 {[%clk 0:02:57.3]}
4. dxe4 {[%clk 0:03:01.2]} 4... Qxd1+ {[%clk 0:02:57.7]} 5. Kxd1 {[%clk
0:03:02.1]} 5... Nf6 {[%clk 0:02:57.5]} 6. Nfd2 {[%clk 0:03:01.9]} 6... g5
{[%clk 0:02:56.8]} 7. a4 {[%clk 0:02:59.3]} 7... g4 {[%clk 0:02:51]} 8. a5
{[%clk 0:02:56.9]} 8... Bg7 {[%clk 0:02:49.7]} 9. c3 {[%clk 0:02:51.4]} 9... Be6
{[%clk 0:02:34.2]} 10. Na3 {[%clk 0:02:51.2]} 10... Nbd7 {[%clk 0:02:33.8]} 11.
Bc4 {[%clk 0:02:51]} 11... Bxc4 {[%clk 0:02:33]} 12. Naxc4 {[%clk 0:02:51.9]}
12... Nc5 {[%clk 0:02:33.2]} 13. f3 {[%clk 0:02:40.3]} 13... O-O-O {[%clk
0:02:27.1]} 14. Kc2 {[%clk 0:02:39.5]} 14... Nd3 {[%clk 0:02:12]} 15. Nb3 {[%clk
0:02:37.3]} 15... gxf3 {[%clk 0:02:07.1]} 16. gxf3 {[%clk 0:02:37.2]} 16... Nxc1
{[%clk 0:02:06.9]} 17. Raxc1 {[%clk 0:02:36.8]} 17... Bh6 {[%clk 0:02:06.8]} 18.
Rcd1 {[%clk 0:02:30.9]} 18... Rxd1 {[%clk 0:02:01.9]} 19. Kxd1 {[%clk
0:02:18.6]} 19... Rg8 {[%clk 0:01:58.8]} 20. Nd4 {[%clk 0:02:12.4]} 20... Rg2
{[%clk 0:01:27.3]} 21. Ne2 {[%clk 0:02:10.7]} 21... Kd7 {[%clk 0:01:19.3]} 22.
Ke1 {[%clk 0:02:10]} 22... Nh5 {[%clk 0:01:13.8]} 23. Kf1 {[%clk 0:02:08.6]}
23... Rg8 {[%clk 0:01:14.3]} 24. Kf2 {[%clk 0:02:07]} 24... Nf4 {[%clk
0:01:13.3]} 25. Rd1+ {[%clk 0:02:06.6]} 25... Kc7 {[%clk 0:01:04]} 26. Ng3
{[%clk 0:02:06.6]} 26... e6 {[%clk 0:01:01.4]} 27. Ne5 {[%clk 0:02:05.4]} 27...
f6 {[%clk 0:01:01.1]} 28. Rd7+ {[%clk 0:01:57.9]} 28... Kc8 {[%clk 0:01:01.1]}
29. Rxh7 {[%clk 0:01:58]} 29... fxe5 {[%clk 0:01:00.1]} 30. Rxh6 {[%clk
0:01:58.5]} 30... Rd8 {[%clk 0:01:00.8]} 31. Nf1 {[%clk 0:01:44.1]} 31... Rg8
{[%clk 0:00:38.6]} 32. Ne3 {[%clk 0:01:40.1]} 32... Rd8 {[%clk 0:00:36.4]} 33.
Nc4 {[%clk 0:01:39.2]} 33... Rd1 {[%clk 0:00:22.7]} 34. Rh8+ {[%clk 0:01:36.5]}
34... Kc7 {[%clk 0:00:22.7]} 35. Rh7+ {[%clk 0:01:36.9]} 35... Kc8 {[%clk
0:00:22.5]} 36. Nxe5 {[%clk 0:01:33.1]} 1-0

[Event "*** Titled Tuesday Blitz"]
[Site "Chess.com"]
[Date "2020.05.26"]
[Round "5"]
[White "warmoatmeal"]
[Black "MFBerna"]
[Result "0-1"]
[WhiteElo "2150"]
[BlackElo "2399"]
[TimeControl "180+1"]
[EndTime "10:54:58 PDT"]
[Termination "MFBerna won by resignation"]

1. d4 {[%clk 0:03:00.9]} 1... Nf6 {[%clk 0:02:59.7]} 2. Nf3 {[%clk 0:02:59.9]}
2... e6 {[%clk 0:02:59.7]} 3. Bg5 {[%clk 0:02:56.1]} 3... Be7 {[%clk 0:02:59.2]}
4. e3 {[%clk 0:02:55.9]} 4... Ne4 {[%clk 0:02:58.3]} 5. Bxe7 {[%clk 0:02:55.2]}
5... Qxe7 {[%clk 0:02:59.2]} 6. Nbd2 {[%clk 0:02:55.5]} 6... Nxd2 {[%clk
0:02:56.2]} 7. Qxd2 {[%clk 0:02:56.4]} 7... O-O {[%clk 0:02:53.1]} 8. Bd3 {[%clk
0:02:56.4]} 8... f5 {[%clk 0:02:51.2]} 9. c3 {[%clk 0:02:56]} 9... d6 {[%clk
0:02:49.9]} 10. e4 {[%clk 0:02:56.1]} 10... Nd7 {[%clk 0:02:44.3]} 11. O-O-O
{[%clk 0:02:54.8]} 11... Nf6 {[%clk 0:02:39.8]} 12. exf5 {[%clk 0:02:53.8]}
12... exf5 {[%clk 0:02:40.7]} 13. Rhe1 {[%clk 0:02:54]} 13... Ne4 {[%clk
0:02:33.6]} 14. Qf4 {[%clk 0:02:46.3]} 14... Qf7 {[%clk 0:02:26.6]} 15. Bxe4
{[%clk 0:02:42.4]} 15... fxe4 {[%clk 0:02:23.8]} 16. Qxf7+ {[%clk 0:02:43.3]}
16... Rxf7 {[%clk 0:02:23.2]} 17. Rxe4 {[%clk 0:02:44.2]} 17... Bf5 {[%clk
0:02:17.3]} 18. Re3 {[%clk 0:02:43.3]} 18... Bg4 {[%clk 0:02:16]} 19. Rde1
{[%clk 0:02:35.7]} 19... Raf8 {[%clk 0:02:07.5]} 20. Re7 {[%clk 0:02:20.4]}
20... Bxf3 {[%clk 0:02:06.1]} 21. gxf3 {[%clk 0:02:17.3]} 21... Rxe7 {[%clk
0:01:50.2]} 22. Rxe7 {[%clk 0:02:16]} 22... Rf7 {[%clk 0:01:50.9]} 23. Re8+
{[%clk 0:02:12.1]} 23... Rf8 {[%clk 0:01:51]} 24. Rxf8+ {[%clk 0:02:12.6]} 24...
Kxf8 {[%clk 0:01:51.1]} 25. Kd2 {[%clk 0:02:13.5]} 25... Kf7 {[%clk 0:01:51.2]}
26. Ke3 {[%clk 0:02:14.4]} 26... Kf6 {[%clk 0:01:49.8]} 27. Kf4 {[%clk
0:02:14.5]} 27... d5 {[%clk 0:01:37.2]} 28. h4 {[%clk 0:02:13]} 28... h5 {[%clk
0:01:35.1]} 29. b3 {[%clk 0:02:06.1]} 29... c6 {[%clk 0:01:10.4]} 30. a3 {[%clk
0:01:59.8]} 30... a6 {[%clk 0:01:08.5]} 31. a4 {[%clk 0:01:44]} 31... a5 {[%clk
0:01:08.3]} 32. b4 {[%clk 0:01:43.1]} 32... b6 {[%clk 0:01:07.2]} 33. bxa5
{[%clk 0:01:21.9]} 33... bxa5 {[%clk 0:01:06.7]} 34. Ke3 {[%clk 0:01:22.8]}
34... Kf5 {[%clk 0:01:06.8]} 35. Kd3 {[%clk 0:01:23.1]} 35... Kf4 {[%clk
0:01:05.6]} 36. Ke2 {[%clk 0:01:23.2]} 36... g5 {[%clk 0:01:01.8]} 37. hxg5
{[%clk 0:01:22.5]} 37... Kxg5 {[%clk 0:01:02.7]} 38. Kf1 {[%clk 0:01:22.4]}
38... Kf4 {[%clk 0:01:02.9]} 39. Kg2 {[%clk 0:01:22.7]} 39... h4 {[%clk
0:01:03]} 40. Kh3 {[%clk 0:01:11.2]} 40... Kxf3 {[%clk 0:01:03.9]} 41. Kxh4
{[%clk 0:01:12.1]} 41... Kxf2 {[%clk 0:01:04.4]} 42. Kg5 {[%clk 0:01:11.9]}
42... Ke3 {[%clk 0:01:04.6]} 43. Kf5 {[%clk 0:01:12.1]} 43... Kd3 {[%clk
0:01:04.9]} 44. Ke5 {[%clk 0:01:08.7]} 44... Kxc3 {[%clk 0:01:05]} 45. Kd6
{[%clk 0:01:09.4]} 45... Kxd4 {[%clk 0:01:04.5]} 46. Kxc6 {[%clk 0:01:10.2]}
46... Kc4 {[%clk 0:01:05]} 47. Kb6 {[%clk 0:01:09.3]} 47... Kb4 {[%clk
0:01:05.5]} 48. Kc6 {[%clk 0:01:09.5]} 48... d4 {[%clk 0:01:06.3]} 49. Kd5
{[%clk 0:01:10.1]} 49... d3 {[%clk 0:01:07.2]} 0-1

[Event "*** Titled Tuesday Blitz"]
[Site "Chess.com"]
[Date "2020.05.26"]
[Round "5"]
[White "bsnsun"]
[Black "DinaBelenkaya"]
[Result "1-0"]
[WhiteElo "2485"]
[BlackElo "2254"]
[TimeControl "180+1"]
[EndTime "10:55:00 PDT"]
[Termination "bsnsun won on time"]

1. Nf3 {[%clk 0:03:00.9]} 1... d5 {[%clk 0:02:57.5]} 2. g3 {[%clk 0:02:57.3]}
2... Bg4 {[%clk 0:02:55.7]} 3. Bg2 {[%clk 0:02:55.4]} 3... c6 {[%clk 0:02:54.5]}
4. c4 {[%clk 0:02:53.6]} 4... e6 {[%clk 0:02:54.6]} 5. cxd5 {[%clk 0:02:52.4]}
5... exd5 {[%clk 0:02:54.1]} 6. O-O {[%clk 0:02:52.5]} 6... Nd7 {[%clk
0:02:53.7]} 7. d3 {[%clk 0:02:51.3]} 7... Bc5 {[%clk 0:02:39.8]} 8. Nc3 {[%clk
0:02:48.3]} 8... Ne7 {[%clk 0:02:39.4]} 9. Qb3 {[%clk 0:02:35.9]} 9... Qb6
{[%clk 0:02:29.4]} 10. Qc2 {[%clk 0:02:36]} 10... Bd6 {[%clk 0:01:43.6]} 11. e4
{[%clk 0:02:35.5]} 11... O-O {[%clk 0:01:36.7]} 12. Re1 {[%clk 0:02:24.7]} 12...
Rfe8 {[%clk 0:00:48.5]} 13. h3 {[%clk 0:02:13.7]} 13... Bxf3 {[%clk 0:00:47.1]}
14. Bxf3 {[%clk 0:02:13.6]} 14... d4 {[%clk 0:00:46.8]} 15. Ne2 {[%clk
0:02:13.2]} 15... Ne5 {[%clk 0:00:24.6]} 16. Bg2 {[%clk 0:02:13.4]} 16... f5
{[%clk 0:00:24.8]} 17. f4 {[%clk 0:02:09.3]} 17... Nd7 {[%clk 0:00:15.6]} 18. e5
{[%clk 0:02:02.5]} 18... Bb4 {[%clk 0:00:15]} 19. Bd2 {[%clk 0:01:59.3]} 19...
Nd5 {[%clk 0:00:14.5]} 20. Bxd5+ {[%clk 0:01:35.1]} 20... cxd5 {[%clk
0:00:14.3]} 21. Bxb4 {[%clk 0:01:35.3]} 21... Qxb4 {[%clk 0:00:14.9]} 22. Rac1
{[%clk 0:01:35.5]} 22... Qa5 {[%clk 0:00:09.6]} 23. Qc7 {[%clk 0:01:31.5]} 23...
Qxc7 {[%clk 0:00:05.3]} 24. Rxc7 {[%clk 0:01:31.6]} 24... Nb6 {[%clk 0:00:02.3]}
25. Nxd4 {[%clk 0:01:31.7]} 25... Na4 {[%clk 0:00:01.8]} 26. b3 {[%clk
0:01:30.5]} 26... Nb2 {[%clk 0:00:01.2]} 27. Rec1 {[%clk 0:01:22.6]} 1-0

[Event "*** Titled Tuesday Blitz"]
[Site "Chess.com"]
[Date "2020.05.26"]
[Round "5"]
[White "Zmeeed63"]
[Black "kingnb"]
[Result "0-1"]
[WhiteElo "2230"]
[BlackElo "2478"]
[TimeControl "180+1"]
[EndTime "10:55:01 PDT"]
[Termination "kingnb won by resignation"]

1. d4 {[%clk 0:03:00.9]} 1... d6 {[%clk 0:02:58.4]} 2. c4 {[%clk 0:03:00]} 2...
e5 {[%clk 0:02:57.8]} 3. d5 {[%clk 0:02:59.9]} 3... f5 {[%clk 0:02:56.7]} 4. Nc3
{[%clk 0:03:00.5]} 4... Nf6 {[%clk 0:02:55.7]} 5. Bg5 {[%clk 0:02:55.4]} 5... h6
{[%clk 0:02:54.6]} 6. Bxf6 {[%clk 0:02:55.3]} 6... Qxf6 {[%clk 0:02:55.5]} 7. e4
{[%clk 0:02:55.8]} 7... Be7 {[%clk 0:02:55.4]} 8. Bd3 {[%clk 0:02:46.1]} 8...
O-O {[%clk 0:02:55]} 9. Qc2 {[%clk 0:02:37.6]} 9... Na6 {[%clk 0:02:53.4]} 10.
a3 {[%clk 0:02:34.6]} 10... Nc5 {[%clk 0:02:53]} 11. Nf3 {[%clk 0:02:12.9]}
11... fxe4 {[%clk 0:02:41.1]} 12. Bxe4 {[%clk 0:02:10.7]} 12... Nxe4 {[%clk
0:02:40.1]} 13. Nxe4 {[%clk 0:02:11.6]} 13... Qg6 {[%clk 0:02:40.6]} 14. O-O-O
{[%clk 0:01:32.4]} 14... Bf5 {[%clk 0:02:14.9]} 15. Nfd2 {[%clk 0:01:31]} 15...
Qxg2 {[%clk 0:02:13.7]} 16. Rdg1 {[%clk 0:01:19.1]} 16... Qxf2 {[%clk
0:02:06.7]} 17. Nxf2 {[%clk 0:00:31.7]} 17... Bxc2 {[%clk 0:02:07.5]} 18. Ng4
{[%clk 0:00:32.1]} 18... Bd3 {[%clk 0:01:54.9]} 19. Nxh6+ {[%clk 0:00:29.5]}
19... Kh7 {[%clk 0:01:55.2]} 20. Ng4 {[%clk 0:00:29.1]} 20... Bg5 {[%clk
0:01:48.1]} 21. b3 {[%clk 0:00:25.1]} 21... Be4 {[%clk 0:01:45.8]} 22. h4 {[%clk
0:00:18.3]} 22... Bxd2+ {[%clk 0:01:45.2]} 23. Kxd2 {[%clk 0:00:19.2]} 23...
Bxh1 {[%clk 0:01:45.9]} 24. Rxh1 {[%clk 0:00:20.1]} 24... Rf4 {[%clk 0:01:46.5]}
25. Ne3 {[%clk 0:00:19.9]} 25... Raf8 {[%clk 0:01:46.5]} 26. Rh2 {[%clk
0:00:19.7]} 26... Rf2+ {[%clk 0:01:46.2]} 27. Rxf2 {[%clk 0:00:20.1]} 27...
Rxf2+ {[%clk 0:01:47.1]} 28. Kd3 {[%clk 0:00:21]} 28... Rf4 {[%clk 0:01:47.4]}
29. b4 {[%clk 0:00:17.3]} 29... Rxh4 {[%clk 0:01:46.8]} 30. c5 {[%clk
0:00:18.2]} 30... g5 {[%clk 0:01:45.6]} 31. cxd6 {[%clk 0:00:17.6]} 31... cxd6
{[%clk 0:01:46.5]} 32. Nf5 {[%clk 0:00:18.5]} 32... Rd4+ {[%clk 0:01:46.6]} 33.
Ke3 {[%clk 0:00:16]} 33... Rxd5 {[%clk 0:01:46.2]} 0-1

[Event "*** Titled Tuesday Blitz"]
[Site "Chess.com"]
[Date "2020.05.26"]
[Round "5"]
[White "MNyuyu"]
[Black "Future2700"]
[Result "1-0"]
[WhiteElo "2309"]
[BlackElo "2411"]
[TimeControl "180+1"]
[EndTime "10:55:01 PDT"]
[Termination "MNyuyu won on time"]

1. d4 {[%clk 0:03:00.9]} 1... Nf6 {[%clk 0:02:57.6]} 2. Nf3 {[%clk 0:02:58.9]}
2... b6 {[%clk 0:02:57.3]} 3. Bf4 {[%clk 0:02:58.1]} 3... Bb7 {[%clk 0:02:57]}
4. e3 {[%clk 0:02:57.8]} 4... d6 {[%clk 0:02:57.6]} 5. Bd3 {[%clk 0:02:56.9]}
5... g6 {[%clk 0:02:58]} 6. h3 {[%clk 0:02:56.2]} 6... Bg7 {[%clk 0:02:57.9]} 7.
c3 {[%clk 0:02:55.6]} 7... Nbd7 {[%clk 0:02:58.4]} 8. Qe2 {[%clk 0:02:54.3]}
8... e6 {[%clk 0:02:55.6]} 9. Nbd2 {[%clk 0:02:53.1]} 9... Qe7 {[%clk 0:02:56]}
10. Bh2 {[%clk 0:02:51.4]} 10... e5 {[%clk 0:02:56.6]} 11. dxe5 {[%clk
0:02:51.1]} 11... dxe5 {[%clk 0:02:57.5]} 12. Ba6 {[%clk 0:02:45.5]} 12... Bxa6
{[%clk 0:02:55.1]} 13. Qxa6 {[%clk 0:02:44.8]} 13... O-O {[%clk 0:02:56]} 14.
O-O {[%clk 0:02:44.3]} 14... c5 {[%clk 0:02:32.2]} 15. Rfd1 {[%clk 0:02:42.6]}
15... e4 {[%clk 0:02:30.6]} 16. Ne1 {[%clk 0:02:40.9]} 16... Ne5 {[%clk
0:02:26.9]} 17. Nc4 {[%clk 0:02:38.8]} 17... Nxc4 {[%clk 0:02:12]} 18. Qxc4
{[%clk 0:02:37.9]} 18... Rad8 {[%clk 0:02:11.1]} 19. Bg3 {[%clk 0:02:32.3]}
19... Rfe8 {[%clk 0:02:07.9]} 20. Bh4 {[%clk 0:02:31.3]} 20... Qe5 {[%clk
0:02:06.9]} 21. Bxf6 {[%clk 0:02:30.4]} 21... Bxf6 {[%clk 0:02:02.9]} 22. Nc2
{[%clk 0:02:29.8]} 22... Kg7 {[%clk 0:01:55.5]} 23. Na3 {[%clk 0:02:28]} 23...
Be7 {[%clk 0:01:40.6]} 24. Qe2 {[%clk 0:02:26.4]} 24... Bd6 {[%clk 0:01:40]} 25.
g3 {[%clk 0:02:25.8]} 25... Bb8 {[%clk 0:01:38.6]} 26. Nc4 {[%clk 0:02:24.9]}
26... Qe6 {[%clk 0:01:39]} 27. Kg2 {[%clk 0:02:23.7]} 27... h5 {[%clk
0:01:34.9]} 28. h4 {[%clk 0:02:23.3]} 28... f6 {[%clk 0:01:28.8]} 29. a4 {[%clk
0:02:21.7]} 29... g5 {[%clk 0:01:28.3]} 30. hxg5 {[%clk 0:02:05.6]} 30... fxg5
{[%clk 0:01:29.2]} 31. Qxh5 {[%clk 0:02:01.3]} 31... Rxd1 {[%clk 0:00:52.8]} 32.
Rxd1 {[%clk 0:02:00]} 32... Qe7 {[%clk 0:00:11]} 33. Rh1 {[%clk 0:01:52.4]}
33... Rg8 {[%clk 0:00:06.7]} 34. Qh7+ {[%clk 0:01:47.8]} 34... Kf8 {[%clk
0:00:07]} 35. Qf5+ {[%clk 0:01:46.1]} 35... Qf7 {[%clk 0:00:02.6]} 36. Qxe4
{[%clk 0:01:38.7]} 1-0

[Event "*** Titled Tuesday Blitz"]
[Site "Chess.com"]
[Date "2020.05.26"]
[Round "5"]
[White "KuzubovYuriy"]
[Black "Lubov_Gordyk"]
[Result "0-1"]
[WhiteElo "2759"]
[BlackElo "2616"]
[TimeControl "180+1"]
[EndTime "10:55:05 PDT"]
[Termination "Lubov_Gordyk won by resignation"]

1. d4 {[%clk 0:03:00.9]} 1... c5 {[%clk 0:02:59.5]} 2. d5 {[%clk 0:03:00.4]}
2... f5 {[%clk 0:02:57.6]} 3. g3 {[%clk 0:02:58.1]} 3... Nf6 {[%clk 0:02:54.3]}
4. Bg2 {[%clk 0:02:57.7]} 4... g6 {[%clk 0:02:53.6]} 5. h4 {[%clk 0:02:53.5]}
5... Bg7 {[%clk 0:02:50.8]} 6. h5 {[%clk 0:02:52.9]} 6... Nxh5 {[%clk 0:02:45]}
7. e4 {[%clk 0:02:49.3]} 7... Qb6 {[%clk 0:02:39]} 8. exf5 {[%clk 0:02:37.3]}
8... Bxb2 {[%clk 0:02:33.5]} 9. Bxb2 {[%clk 0:02:33.1]} 9... Qxb2 {[%clk
0:02:29.9]} 10. Nd2 {[%clk 0:02:33.8]} 10... d6 {[%clk 0:02:21]} 11. fxg6 {[%clk
0:02:22.8]} 11... hxg6 {[%clk 0:02:18.6]} 12. Rb1 {[%clk 0:02:23.2]} 12... Qg7
{[%clk 0:02:12.2]} 13. Ne2 {[%clk 0:02:17.1]} 13... Nd7 {[%clk 0:02:07.5]} 14.
Ne4 {[%clk 0:02:10.5]} 14... Nb6 {[%clk 0:02:01.6]} 15. Ng5 {[%clk 0:01:53.3]}
15... Bg4 {[%clk 0:02:00.7]} 16. a4 {[%clk 0:01:46.8]} 16... Qe5 {[%clk
0:01:55.9]} 17. Ne6 {[%clk 0:01:38.3]} 17... Nxd5 {[%clk 0:01:42.1]} 18. Bxd5
{[%clk 0:01:15]} 18... Bxe6 {[%clk 0:01:38.5]} 19. Bxb7 {[%clk 0:01:13.9]} 19...
Rb8 {[%clk 0:01:32]} 20. Bf3 {[%clk 0:00:47.6]} 20... Rxb1 {[%clk 0:01:28]} 21.
Qxb1 {[%clk 0:00:47.4]} 21... O-O {[%clk 0:01:15.3]} 22. Qb7 {[%clk 0:00:28.6]}
22... Rxf3 {[%clk 0:01:08.3]} 23. Qxf3 {[%clk 0:00:26.5]} 23... Bd5 {[%clk
0:01:02.5]} 24. Rxh5 {[%clk 0:00:26.1]} 24... Qa1+ {[%clk 0:00:53.4]} 25. Kd2
{[%clk 0:00:25.9]} 25... Bxf3 {[%clk 0:00:50.3]} 0-1

[Event "*** Titled Tuesday Blitz"]
[Site "Chess.com"]
[Date "2020.05.26"]
[Round "5"]
[White "realmadridtv"]
[Black "DonPreuss"]
[Result "1-0"]
[WhiteElo "2450"]
[BlackElo "2236"]
[TimeControl "180+1"]
[EndTime "10:55:07 PDT"]
[Termination "realmadridtv won by resignation"]

1. d4 {[%clk 0:03:00.9]} 1... Nc6 {[%clk 0:02:59.3]} 2. Nf3 {[%clk 0:02:59.1]}
2... d6 {[%clk 0:02:59.1]} 3. Nc3 {[%clk 0:02:54.5]} 3... g6 {[%clk 0:02:59.4]}
4. e4 {[%clk 0:02:52.5]} 4... Bg7 {[%clk 0:02:59.4]} 5. Be3 {[%clk 0:02:53]}
5... e5 {[%clk 0:02:58.8]} 6. Qd2 {[%clk 0:02:43.8]} 6... Bg4 {[%clk 0:02:45.5]}
7. dxe5 {[%clk 0:02:40.7]} 7... Nxe5 {[%clk 0:02:44.3]} 8. Nd4 {[%clk
0:02:20.9]} 8... Ne7 {[%clk 0:02:25.1]} 9. f3 {[%clk 0:02:17.4]} 9... Bd7 {[%clk
0:02:22.1]} 10. Bh6 {[%clk 0:02:12.2]} 10... O-O {[%clk 0:01:08.1]} 11. h4
{[%clk 0:02:06.5]} 11... N7c6 {[%clk 0:01:04.8]} 12. Nb3 {[%clk 0:02:02.4]}
12... f5 {[%clk 0:00:57.9]} 13. h5 {[%clk 0:01:58.3]} 13... fxe4 {[%clk
0:00:50.2]} 14. Bxg7 {[%clk 0:01:49.7]} 14... Rxf3 {[%clk 0:00:22.7]} 15. Bxe5
{[%clk 0:01:38.7]} 15... Nxe5 {[%clk 0:00:21.3]} 16. O-O-O {[%clk 0:01:35.6]}
16... Rf7 {[%clk 0:00:14.8]} 17. hxg6 {[%clk 0:01:33.7]} 17... Rg7 {[%clk
0:00:14.4]} 18. gxh7+ {[%clk 0:01:32]} 18... Kh8 {[%clk 0:00:14.3]} 19. Nxe4
{[%clk 0:01:32]} 19... Bg4 {[%clk 0:00:13.2]} 20. Be2 {[%clk 0:01:31.7]} 20...
Bxe2 {[%clk 0:00:11.4]} 21. Qxe2 {[%clk 0:01:32.6]} 21... Qe7 {[%clk 0:00:09.5]}
22. Nd4 {[%clk 0:01:28.9]} 22... Rf8 {[%clk 0:00:09.2]} 23. Rdf1 {[%clk
0:01:25.9]} 23... Rgf7 {[%clk 0:00:04.3]} 24. Rxf7 {[%clk 0:01:24.4]} 24... Qxf7
{[%clk 0:00:04.2]} 25. Kb1 {[%clk 0:01:18.2]} 25... Qf4 {[%clk 0:00:04.4]} 26.
Ne6 {[%clk 0:01:15.8]} 26... Qf2 {[%clk 0:00:02.2]} 27. Nxf2 {[%clk 0:01:14.8]}
1-0

[Event "*** Titled Tuesday Blitz"]
[Site "Chess.com"]
[Date "2020.05.26"]
[Round "5"]
[White "MarcoRiehle"]
[Black "oneshot007"]
[Result "1-0"]
[WhiteElo "2638"]
[BlackElo "2439"]
[TimeControl "180+1"]
[EndTime "10:55:12 PDT"]
[Termination "MarcoRiehle won by checkmate"]

1. e4 {[%clk 0:03:00.9]} 1... g6 {[%clk 0:02:57.4]} 2. d4 {[%clk 0:03:00.3]}
2... Nf6 {[%clk 0:02:57.7]} 3. e5 {[%clk 0:02:59.9]} 3... Nh5 {[%clk 0:02:57.2]}
4. Nf3 {[%clk 0:02:58.8]} 4... d6 {[%clk 0:02:55.3]} 5. Nc3 {[%clk 0:02:57.1]}
5... Nc6 {[%clk 0:02:49.7]} 6. Bb5 {[%clk 0:02:54.9]} 6... a6 {[%clk 0:02:46]}
7. Bxc6+ {[%clk 0:02:54.3]} 7... bxc6 {[%clk 0:02:46.9]} 8. O-O {[%clk
0:02:53.8]} 8... Ng7 {[%clk 0:02:20]} 9. Re1 {[%clk 0:02:52.1]} 9... Nf5 {[%clk
0:02:12]} 10. g4 {[%clk 0:02:41.9]} 10... Ng7 {[%clk 0:02:12.1]} 11. Ne4 {[%clk
0:02:41]} 11... Bxg4 {[%clk 0:02:01.6]} 12. exd6 {[%clk 0:02:40.5]} 12... Ne6
{[%clk 0:01:47.7]} 13. d5 {[%clk 0:02:19.4]} 13... Bxf3 {[%clk 0:01:14]} 14.
dxe6 {[%clk 0:02:18.9]} 14... Bxd1 {[%clk 0:00:58.5]} 15. d7+ {[%clk 0:02:10.9]}
15... Qxd7 {[%clk 0:00:58.5]} 16. exd7+ {[%clk 0:02:11.8]} 16... Kxd7 {[%clk
0:00:59.4]} 17. Rxd1+ {[%clk 0:02:12.3]} 17... Kc8 {[%clk 0:00:57.1]} 18. Be3
{[%clk 0:02:09.7]} 18... Bg7 {[%clk 0:00:53.6]} 19. Bd4 {[%clk 0:02:09.3]} 19...
e5 {[%clk 0:00:52.8]} 20. Bc3 {[%clk 0:02:09]} 20... f5 {[%clk 0:00:52.7]} 21.
Nc5 {[%clk 0:02:09.2]} 21... Re8 {[%clk 0:00:51.3]} 22. b4 {[%clk 0:02:05.6]}
22... Bf8 {[%clk 0:00:49.2]} 23. Rd2 {[%clk 0:02:03.2]} 23... a5 {[%clk
0:00:49.1]} 24. a3 {[%clk 0:01:57.1]} 24... axb4 {[%clk 0:00:49.2]} 25. axb4
{[%clk 0:01:58]} 25... Rb8 {[%clk 0:00:49]} 26. Rad1 {[%clk 0:01:54.9]} 26...
Rb5 {[%clk 0:00:47.9]} 27. Ra1 {[%clk 0:01:50.6]} 27... Rb8 {[%clk 0:00:39.6]}
28. Ra6 {[%clk 0:01:49.5]} 28... e4 {[%clk 0:00:35.7]} 29. Rxc6 {[%clk
0:01:46.8]} 29... e3 {[%clk 0:00:36.1]} 30. fxe3 {[%clk 0:01:42]} 30... Rxe3
{[%clk 0:00:37]} 31. Rd7 {[%clk 0:01:39.5]} 31... Rb7 {[%clk 0:00:23.4]} 32. Rf7
{[%clk 0:01:31.7]} 32... Bxc5 {[%clk 0:00:20.2]} 33. Rxc5 {[%clk 0:01:32.6]}
33... Re2 {[%clk 0:00:13.6]} 34. Be5 {[%clk 0:01:29.9]} 34... Rxb4 {[%clk
0:00:12.5]} 35. Rcxc7+ {[%clk 0:01:28.4]} 35... Kd8 {[%clk 0:00:12.5]} 36. Rcd7+
{[%clk 0:01:27]} 36... Ke8 {[%clk 0:00:12.2]} 37. Rfe7+ {[%clk 0:01:25]} 37...
Kf8 {[%clk 0:00:12.3]} 38. Bg7+ {[%clk 0:01:25.9]} 38... Kg8 {[%clk 0:00:12.8]}
39. Rd8# {[%clk 0:01:26.8]} 1-0